bitfinex/quotes_BTCUSD_20251104
["timestamp","ask_amount","ask_price","bid_price","bid_amount"]
[1762228386738,3.18584832,107220.0,107210.0,0.11431014]
[1762228390099,3.28042438,107220.0,107210.0,0.11431014]
[1762228390359,3.28042438,107220.0,107210.0,0.00680014]
[1762228390561,3.28142438,107220.0,107210.0,0.00680014]
[1762228391648,3.35296218,107220.0,107210.0,0.00680014]
[1762228392068,3.35296218,107220.0,107210.0,0.00380014]
[1762228392287,3.35296218,107220.0,107210.0,0.00180014]
[1762228392467,3.35496218,107220.0,107210.0,0.00180014]
[1762228393195,3.28342438,107220.0,107210.0,0.00180014]
[1762228394011,3.34289562,107220.0,107210.0,0.00180014]
[1762228394168,3.31960666,107220.0,107210.0,0.00180014]
[1762228394377,3.34765441,107220.0,107210.0,0.00180014]
[1762228395682,3.41791187,107220.0,107210.0,0.00180014]
[1762228398183,3.43254993,107220.0,107210.0,0.00180014]
[1762228398949,3.43258993,107220.0,107210.0,0.00180014]
[1762228399115,3.43254993,107220.0,107210.0,0.00180014]
[1762228400034,3.39636765,107220.0,107210.0,0.00180014]
[1762228400260,3.27374384,107220.0,107210.0,0.00180014]
[1762228400706,3.20348638,107220.0,107210.0,0.10647014]
[1762228403066,3.20348638,107220.0,107210.0,0.05800014]
[1762228403259,3.21811748,107220.0,107210.0,0.05800014]
[1762228403485,3.31269354,107220.0,107210.0,0.05800014]
[1762228403916,3.31269354,107220.0,107210.0,0.10647014]
[1762228404368,3.29805548,107220.0,107210.0,0.10647014]
[1762228405085,3.04925627,107220.0,107210.0,0.10647014]
[1762228406688,3.05025627,107220.0,107210.0,0.02613014]
[1762228407771,3.05025627,107220.0,107210.0,0.05800014]
[1762228408264,3.05025627,107220.0,107210.0,0.10647014]
[1762228409391,3.05025627,107220.0,107210.0,0.05800014]
[1762228409608,3.14483233,107220.0,107210.0,0.05800014]
[1762228409822,3.14483233,107220.0,107210.0,0.10506014]
[1762228410507,3.14483233,107220.0,107210.0,0.05800014]
[1762228410743,3.05025627,107220.0,107210.0,0.10506014]
[1762228411892,3.04925627,107220.0,107210.0,0.10506014]
[1762228412350,3.04925627,107220.0,107210.0,0.2916099]
[1762228412587,3.04925627,107220.0,107210.0,0.10506014]
[1762228412796,2.84809281,107220.0,107210.0,0.31026487]
[1762228413012,3.03462517,107220.0,107210.0,0.2916099]
[1762228413262,2.84809281,107220.0,107210.0,0.2916099]
[1762228413658,2.84709281,107220.0,107210.0,0.2916099]
[1762228413864,2.84609281,107220.0,107210.0,0.2916099]
[1762228414099,2.84609281,107220.0,107210.0,0.2946099]
[1762228414316,2.60975381,107230.0,107220.0,0.23958236]
[1762228414530,3.19585121,107240.0,107230.0,0.05305]
[1762228414758,3.19585121,107240.0,107230.0,0.10011]
[1762228414977,3.19585121,107240.0,107230.0,0.10056999]
[1762228415664,3.19585121,107240.0,107230.0,0.28708495]
[1762228415916,3.0,107240.0,107230.0,0.28708495]
[1762228416152,3.0,107250.0,107240.0,0.18649757]
[1762228416386,0.00935217,107260.0,107250.0,0.23953018]
[1762228416622,3.0,107280.0,107270.0,0.18642926]
[1762228416826,3.00872853,107280.0,107270.0,0.05305]
[1762228417035,3.19515656,107280.0,107270.0,0.28655541]
[1762228417262,3.18642803,107280.0,107270.0,0.28655541]
[1762228417482,3.0,107280.0,107270.0,0.28555541]
[1762228417684,3.18657217,107280.0,107270.0,0.28555541]
[1762228418121,3.18657217,107280.0,107270.0,0.10111]
[1762228418342,3.18657217,107280.0,107270.0,0.10411]
[1762228419490,3.18657217,107280.0,107270.0,0.29055541]
[1762228419743,3.18657217,107280.0,107270.0,0.28555541]
[1762228419958,3.18657217,107280.0,107270.0,0.28655541]
[1762228420164,3.00014414,107280.0,107270.0,0.28655541]
[1762228421226,0.00014414,107280.0,107270.0,0.28655541]
[1762228423077,0.00014414,107280.0,107270.0,0.37531142]
[1762228423768,0.00014414,107280.0,107270.0,0.37431142]
[1762228423998,0.00014414,107280.0,107270.0,0.37831142]
[1762228427103,0.00060386,107280.0,107270.0,0.37831142]
[1762228428407,3.0,107300.0,107280.0,0.186413]
[1762228428613,3.18639356,107300.0,107290.0,0.05309]
[1762228428832,3.19607792,107300.0,107290.0,0.09766]
[1762228429647,3.19907792,107300.0,107290.0,0.28407066]
[1762228429855,3.19807792,107300.0,107290.0,0.09766]
[1762228430089,3.19607792,107300.0,107290.0,0.09766]
[1762228430289,3.19707792,107300.0,107290.0,0.09766]
[1762228430499,3.19907792,107300.0,107290.0,0.09766]
[1762228432918,3.19907792,107300.0,107290.0,0.28407066]
[1762228433124,3.19907792,107300.0,107290.0,0.09766]
[1762228434199,3.1995375,107300.0,107290.0,0.09766]
[1762228437518,3.1995375,107300.0,107290.0,0.28407066]
[1762228438483,3.1995375,107300.0,107290.0,0.09766]
[1762228439620,3.29511356,107300.0,107290.0,0.09766]
[1762228439852,3.20921233,107300.0,107290.0,0.09766]
[1762228440825,3.20921776,107300.0,107290.0,0.09766]
[1762228441668,3.20821776,107300.0,107290.0,0.09766]
[1762228442696,3.22284598,107300.0,107290.0,0.09766]
[1762228443319,3.22284598,107300.0,107290.0,0.28407066]
[1762228443320,3.20821748,107300.0,107290.0,0.28407066]
[1762228444172,3.20821748,107300.0,107290.0,0.09766]
[1762228444386,3.20921748,107300.0,107290.0,0.02388]
[1762228444608,3.20821748,107300.0,107290.0,0.09766]
[1762228445676,3.20821748,107300.0,107290.0,0.28407066]
[1762228445890,3.20821748,107300.0,107290.0,0.09766]
[1762228446735,3.20821748,107300.0,107290.0,0.11630106]
[1762228446902,3.20821748,107300.0,107290.0,0.09766]
[1762228447541,3.20821748,107300.0,107290.0,0.28407066]
[1762228447769,3.20821748,107300.0,107290.0,0.09766]
[1762228447979,3.30279354,107300.0,107290.0,0.05309]
[1762228448192,3.30379354,107300.0,107290.0,0.02388]
[1762228448410,3.30379354,107300.0,107290.0,0.05309]
[1762228448411,3.20921748,107300.0,107290.0,0.05309]
[1762228448836,3.20921748,107300.0,107290.0,0.09766]
[1762228449043,3.20821748,107300.0,107290.0,0.09766]
[1762228450157,3.20827997,107300.0,107290.0,0.09766]
[1762228454176,3.20827997,107300.0,107290.0,0.02388]
[1762228454385,3.20827997,107300.0,107290.0,0.05309]
[1762228454584,3.20827997,107300.0,107290.0,0.09717]
[1762228455191,3.21827997,107300.0,107290.0,0.09717]
[1762228459470,3.01816311,107300.0,107290.0,0.28358066]
[1762228459827,3.03188669,107300.0,107290.0,0.28358066]
[1762228460015,3.21827997,107300.0,107290.0,0.28358066]
[1762228460809,3.03188669,107300.0,107290.0,0.28358066]
[1762228463502,0.02220233,107300.0,107290.0,0.37233667]
[1762228464544,0.01245958,107300.0,107290.0,0.40851895]
[1762228464723,0.01045958,107300.0,107290.0,0.40851895]
[1762228464936,0.01045958,107300.0,107290.0,0.41051895]
[1762228465153,0.5002,107330.0,107320.0,0.18635855]
[1762228465350,3.69541465,107330.0,107320.0,0.05481]
[1762228465579,3.19541465,107330.0,107320.0,0.09889]
[1762228465784,3.19610378,107330.0,107320.0,0.09889]
[1762228466658,3.19610378,107330.0,107320.0,0.09989]
[1762228466867,3.20608595,107330.0,107320.0,0.09989]
[1762228472723,3.23096152,107330.0,107320.0,0.05581]
[1762228472933,3.23192152,107330.0,107320.0,0.05581]
[1762228473359,3.23192152,107330.0,107320.0,0.09824]
[1762228475213,3.20608595,107330.0,107320.0,0.09824]
[1762228475422,3.20608595,107330.0,107320.0,0.28459855]
[1762228475629,3.19735655,107330.0,107320.0,0.28459855]
[1762228475840,3.01101536,107330.0,107320.0,0.28459855]
[1762228476463,3.19735655,107330.0,107320.0,0.28459855]
[1762228477087,3.02707886,107330.0,107320.0,0.28459855]
[1762228477299,3.19701249,107330.0,107320.0,0.28459855]
[1762228479419,3.0106713,107330.0,107320.0,0.28459855]
[1762228480214,3.19701249,107330.0,107320.0,0.28459855]
[1762228481062,3.19701249,107330.0,107320.0,0.09824]
[1762228481723,3.19701249,107330.0,107320.0,0.28459855]
[1762228481930,3.0106713,107330.0,107320.0,0.28459855]
[1762228484139,3.19701249,107330.0,107320.0,0.28459855]
[1762228484597,3.0106713,107330.0,107320.0,0.28459855]
[1762228488596,3.19701249,107330.0,107320.0,0.28459855]
[1762228489056,3.0106713,107330.0,107320.0,0.28459855]
[1762228489715,3.19701249,107330.0,107320.0,0.28459855]
[1762228491808,3.19701249,107330.0,107320.0,0.09824]
[1762228492222,3.20574677,107330.0,107320.0,0.09824]
[1762228492430,3.20564677,107330.0,107320.0,0.28459855]
[1762228496138,3.20564677,107330.0,107320.0,0.09824]
[1762228496941,3.20564677,107330.0,107320.0,0.28459855]
[1762228497149,3.20564677,107330.0,107320.0,0.09824]
[1762228497797,3.23084927,107330.0,107320.0,0.28459855]
[1762228498026,3.20564677,107330.0,107320.0,0.28459855]
[1762228498398,3.01930558,107330.0,107320.0,0.28459855]
[1762228499928,3.20564677,107330.0,107320.0,0.28459855]
[1762228502972,3.20564677,107330.0,107320.0,0.09824]
[1762228503587,3.20564677,107330.0,107320.0,0.28459855]
[1762228503794,3.01930558,107330.0,107320.0,0.28459855]
[1762228504000,3.20564677,107330.0,107320.0,0.28459855]
[1762228504834,3.20564677,107330.0,107320.0,0.09824]
[1762228505492,3.01930558,107330.0,107320.0,0.28459855]
[1762228506459,3.20564677,107330.0,107320.0,0.28459855]
[1762228507018,3.20564677,107330.0,107320.0,0.09824]
[1762228507420,3.20564677,107330.0,107320.0,0.28459855]
[1762228507628,3.01930558,107330.0,107320.0,0.28459855]
[1762228508365,3.00932341,107330.0,107320.0,0.28459855]
[1762228508571,0.00058913,107330.0,107320.0,0.28459855]
[1762228509834,0.00058913,107330.0,107320.0,0.28359855]
[1762228510264,0.00058913,107330.0,107320.0,0.28859855]
[1762228510701,0.00058913,107330.0,107320.0,0.29059855]
[1762228511511,0.00058913,107330.0,107320.0,0.38891855]
[1762228511715,0.00058913,107330.0,107320.0,0.29059855]
[1762228512751,0.00058913,107330.0,107320.0,20.29059855]
[1762228513227,0.18693032,107330.0,107320.0,20.29059855]
[1762228513427,0.00058913,107330.0,107320.0,20.29059855]
[1762228515803,0.17460227,107350.0,107340.0,0.05106]
[1762228515985,3.18334336,107350.0,107340.0,0.05106]
[1762228516133,3.18334336,107350.0,107340.0,0.09517]
[1762228516936,3.18334336,107350.0,107340.0,0.09617]
[1762228517869,3.19474963,107350.0,107340.0,0.09617]
[1762228521582,3.19520889,107350.0,107340.0,0.05206]
[1762228521793,3.20982243,107350.0,107340.0,0.05206]
[1762228522000,3.20982243,107350.0,107340.0,0.09617]
[1762228522851,3.20050711,107350.0,107340.0,0.28249383]
[1762228523058,3.20050711,107350.0,107340.0,0.09617]
[1762228523292,3.20050711,107350.0,107340.0,0.28249383]
[1762228523513,3.20691309,107350.0,107340.0,0.28249383]
[1762228523937,3.20691309,107350.0,107340.0,0.09617]
[1762228524118,3.20691309,107350.0,107340.0,0.28249383]
[1762228526943,3.02060662,107350.0,107340.0,0.28249383]
[1762228527804,3.20691309,107350.0,107340.0,0.28249383]
[1762228528865,3.20691309,107350.0,107340.0,0.09617]
[1762228529502,3.27550257,107350.0,107340.0,0.05206]
[1762228529695,3.20691309,107350.0,107340.0,0.05206]
[1762228529905,3.20691309,107350.0,107340.0,0.09617]
[1762228530331,3.20791309,107350.0,107340.0,0.001]
[1762228530788,3.20791309,107350.0,107340.0,0.05206]
[1762228531153,3.20791309,107350.0,107340.0,0.09517]
[1762228531385,3.22253485,107350.0,107340.0,0.09517]
[1762228531578,3.22353485,107350.0,107340.0,0.09517]
[1762228531781,3.22353485,107350.0,107340.0,0.05106]
[1762228532408,3.22353485,107350.0,107340.0,0.09517]
[1762228532759,3.0108679,107350.0,107340.0,0.09517]
[1762228534443,3.0098679,107350.0,107340.0,0.09517]
[1762228534671,3.0098679,107350.0,107340.0,0.28149383]
[1762228534874,2.99524614,107350.0,107340.0,0.28149383]
[1762228535522,2.99324614,107350.0,107340.0,0.28149383]
[1762228535902,2.99324614,107350.0,107340.0,0.28249383]
[1762228538048,2.99324614,107350.0,107340.0,0.09617]
[1762228538691,2.99324614,107350.0,107340.0,0.28249383]
[1762228540331,2.99324614,107350.0,107340.0,0.09617]
[1762228540532,2.99324614,107350.0,107340.0,0.28249383]
[1762228541828,2.99324614,107350.0,107340.0,0.09617]
[1762228547300,2.99424614,107350.0,107340.0,0.05206]
[1762228547504,2.99424614,107350.0,107340.0,0.09201]
[1762228547720,2.99324614,107350.0,107340.0,0.09201]
[1762228558748,3.0888222,107350.0,107340.0,0.05206]
[1762228558981,3.0888222,107350.0,107340.0,0.02378]
[1762228559200,3.11683218,107350.0,107340.0,0.02378]
[1762228559624,3.13144587,107350.0,107340.0,0.02378]
[1762228559840,3.13144587,107350.0,107340.0,0.02278]
[1762228559841,3.03686981,107350.0,107340.0,0.02278]
[1762228560049,3.03786981,107350.0,107340.0,0.04902]
[1762228561136,3.03886981,107350.0,107340.0,0.04902]
[1762228561853,3.03890981,107350.0,107340.0,0.04902]
[1762228562075,3.03786981,107350.0,107340.0,0.08897]
[1762228562729,3.13244587,107350.0,107340.0,0.08897]
[1762228562949,3.13244587,107350.0,107340.0,0.04902]
[1762228563156,3.1324499,107350.0,107340.0,0.04902]
[1762228563811,3.1324499,107350.0,107340.0,0.02278]
[1762228564265,3.03787384,107350.0,107340.0,0.02278]
[1762228564486,3.03787384,107350.0,107340.0,0.04902]
[1762228564934,3.03787384,107350.0,107340.0,0.08897]
[1762228565625,3.03887384,107350.0,107340.0,0.04902]
[1762228566081,3.03787384,107350.0,107340.0,0.04902]
[1762228566304,0.18634119,107330.0,107320.0,20.02467162]
[1762228566567,2.98141936,107330.0,107320.0,20.02467162]
[1762228566789,2.98141936,107330.0,107320.0,20.06462162]
[1762228567008,3.00943264,107330.0,107320.0,20.06462162]
[1762228567871,3.00943264,107330.0,107320.0,20.06562162]
[1762228568078,3.00943264,107330.0,107320.0,20.06862162]
[1762228568712,3.00943264,107330.0,107320.0,20.25498017]
[1762228569362,3.00943264,107330.0,107320.0,20.06862162]
[1762228569982,3.02404803,107330.0,107320.0,20.06862162]
[1762228571641,3.02404803,107330.0,107320.0,20.06462162]
[1762228571821,3.02404803,107330.0,107320.0,20.06562162]
[1762228572024,3.00943264,107330.0,107320.0,20.25198017]
[1762228572229,3.00943264,107330.0,107320.0,20.06562162]
[1762228579008,2.79507817,107330.0,107320.0,20.25198017]
[1762228579205,2.97267424,107330.0,107320.0,20.06562162]
[1762228579414,2.97267424,107330.0,107320.0,20.25198017]
[1762228580024,2.78633305,107330.0,107320.0,20.25198017]
[1762228581426,2.97267424,107330.0,107320.0,20.25198017]
[1762228581651,2.97267424,107330.0,107320.0,20.06562162]
[1762228582080,2.97267424,107330.0,107320.0,20.25198017]
[1762228582285,2.98140586,107330.0,107320.0,20.25198017]
[1762228582712,2.98140586,107330.0,107320.0,20.06562162]
[1762228583707,2.79506467,107330.0,107320.0,20.25198017]
[1762228583907,2.78633305,107330.0,107320.0,20.25198017]
[1762228599694,2.78633305,107330.0,107320.0,20.25098017]
[1762228599938,0.00022965,107340.0,107330.0,0.18634119]
[1762228600140,0.00022965,107340.0,107330.0,0.3208672]
[1762228600266,0.00022965,107340.0,107330.0,0.3597572]
[1762228601317,0.00022965,107340.0,107330.0,0.3607572]
[1762228601519,0.00022965,107340.0,107330.0,0.3627572]
[1762228602973,3.50022965,107340.0,107330.0,0.27400119]
[1762228603182,3.00022965,107340.0,107330.0,0.27400119]
[1762228604154,3.18655348,107340.0,107330.0,0.27400119]
[1762228605364,3.52655348,107340.0,107330.0,0.08766]
[1762228605572,3.53528462,107340.0,107330.0,0.27400119]
[1762228605810,3.34896079,107340.0,107330.0,0.3627572]
[1762228606009,3.34022965,107340.0,107330.0,0.3627572]
[1762228611288,3.34896516,107340.0,107330.0,0.3627572]
[1762228611717,3.34896516,107340.0,107330.0,0.27400119]
[1762228611922,3.42531883,107340.0,107330.0,0.3627572]
[1762228612073,3.238995,107340.0,107330.0,0.3627572]
[1762228613584,3.42531883,107340.0,107330.0,0.08766]
[1762228613781,3.43405537,107340.0,107330.0,0.27400119]
[1762228614192,3.43405537,107340.0,107330.0,0.08766]
[1762228614485,3.43405537,107340.0,107330.0,0.27400119]
[1762228614706,3.43405537,107340.0,107330.0,0.08766]
[1762228614909,3.43405537,107340.0,107330.0,0.27400119]
[1762228615330,3.43405537,107340.0,107330.0,0.08766]
[1762228616476,3.46206459,107340.0,107330.0,0.08766]
[1762228616711,3.46206459,107340.0,107330.0,0.08566]
[1762228617085,3.46206459,107340.0,107330.0,0.08466]
[1762228618682,3.45882681,107340.0,107330.0,0.07698166]
[1762228620662,3.45847908,107340.0,107330.0,0.07698166]
[1762228621103,3.45847908,107340.0,107330.0,0.26332285]
[1762228622711,3.45847908,107340.0,107330.0,0.07698166]
[1762228622922,3.27219525,107340.0,107330.0,0.26332285]
[1762228623122,3.27215525,107340.0,107330.0,0.35207886]
[1762228623326,3.45847908,107340.0,107330.0,0.35207886]
[1762228623615,3.27215525,107340.0,107330.0,0.35207886]
[1762228624372,3.27215525,107340.0,107330.0,0.26332285]
[1762228624531,3.45847908,107340.0,107330.0,0.26332285]
[1762228624937,3.27215525,107340.0,107330.0,0.35207886]
[1762228625161,2.93574076,107340.0,107330.0,0.35207886]
[1762228625571,3.12206459,107340.0,107330.0,0.26332285]
[1762228625775,3.12206459,107340.0,107330.0,0.07698166]
[1762228627077,3.12306459,107340.0,107330.0,0.07698166]
[1762228627676,3.46306459,107340.0,107330.0,0.07698166]
[1762228627877,3.45919556,107340.0,107330.0,0.07312574]
[1762228628393,3.47380973,107340.0,107330.0,0.07312574]
[1762228628839,3.47280973,107340.0,107330.0,0.07312574]
[1762228629773,3.47280973,107340.0,107330.0,0.25946693]
[1762228630019,3.2864859,107340.0,107330.0,0.25946693]
[1762228630247,3.47280973,107340.0,107330.0,0.25946693]
[1762228631859,3.2864859,107340.0,107330.0,0.25946693]
[1762228632081,3.2864859,107340.0,107330.0,0.34822294]
[1762228632318,3.47280973,107340.0,107330.0,0.34822294]
[1762228632768,3.2864859,107340.0,107330.0,0.34822294]
[1762228635240,3.47280973,107340.0,107330.0,0.34822294]
[1762228635884,3.47280973,107340.0,107330.0,0.16188175]
[1762228636137,3.47280973,107340.0,107330.0,0.34822294]
[1762228636366,3.2864859,107340.0,107330.0,0.34822294]
[1762228636577,3.25847668,107340.0,107330.0,0.34822294]
[1762228636782,2.91847668,107340.0,107330.0,0.34822294]
[1762228637054,2.89512597,107340.0,107330.0,0.34822294]
[1762228638031,2.89512597,107340.0,107330.0,0.35022294]
[1762228639187,2.89512597,107340.0,107330.0,0.35122294]
[1762228642085,3.0814498,107340.0,107330.0,0.35122294]
[1762228642300,2.89512597,107340.0,107330.0,0.35122294]
[1762228647566,0.04281813,107360.0,107350.0,0.18630647]
[1762228647742,0.0002,107370.0,107360.0,0.18628912]
[1762228647921,0.0002,107370.0,107360.0,0.26581912]
[1762228648583,0.0002,107370.0,107360.0,0.2938147]
[1762228649367,0.5002,107390.0,107380.0,0.18625442]
[1762228649566,2.895374,107390.0,107380.0,0.22935442]
[1762228649770,2.895374,107390.0,107380.0,0.26450442]
[1762228649985,2.895374,107390.0,107380.0,0.29249645]
[1762228650703,2.90871525,107390.0,107380.0,0.29249645]
[1762228651130,2.90871525,107390.0,107380.0,0.29349645]
[1762228653697,3.09495232,107390.0,107380.0,0.29349645]
[1762228654044,3.0961,107390.0,107380.0,0.29349645]
[1762228654990,2.90986293,107390.0,107380.0,0.29349645]
[1762228655216,3.0961,107390.0,107380.0,0.29349645]
[1762228655345,2.90986293,107390.0,107380.0,0.29349645]
[1762228655763,3.0961,107390.0,107380.0,0.29349645]
[1762228656022,3.0961,107390.0,107380.0,0.10724203]
[1762228656264,3.0961,107390.0,107380.0,0.26550442]
[1762228656265,2.90986293,107390.0,107380.0,0.26550442]
[1762228657849,2.89652168,107390.0,107380.0,0.26550442]
[1762228664119,2.66047368,107390.0,107380.0,0.26550442]
[1762228670015,2.85540571,107390.0,107380.0,0.26550442]
[1762228670432,2.66916864,107390.0,107380.0,0.26550442]
[1762228672568,2.85540571,107390.0,107380.0,0.26550442]
[1762228672781,2.66916864,107390.0,107380.0,0.26550442]
[1762228672982,2.85540571,107390.0,107380.0,0.26550442]
[1762228673209,2.85540571,107390.0,107380.0,0.07925]
[1762228674038,2.85540571,107390.0,107380.0,0.07825]
[1762228674233,2.66916864,107390.0,107380.0,0.26450442]
[1762228674541,2.85540571,107390.0,107380.0,0.26450442]
[1762228674741,2.85640571,107390.0,107380.0,0.26450442]
[1762228674957,2.67016864,107390.0,107380.0,0.26450442]
[1762228675570,2.85640571,107390.0,107380.0,0.26450442]
[1762228676652,2.87105287,107390.0,107380.0,0.07825]
[1762228676870,2.87101287,107390.0,107380.0,0.26450442]
[1762228678130,2.87101287,107390.0,107380.0,0.07825]
[1762228682688,2.87201287,107390.0,107380.0,0.07825]
[1762228682908,2.86331791,107390.0,107380.0,0.07825]
[1762228683127,2.87205768,107390.0,107380.0,0.07825]
[1762228685628,2.87105768,107390.0,107380.0,0.07825]
[1762228688363,3.21105768,107390.0,107380.0,0.07825]
[1762228688558,3.21105768,107390.0,107380.0,0.0431]
[1762228688760,3.21105768,107390.0,107380.0,0.08078]
[1762228689016,3.19645052,107390.0,107380.0,0.08078]
[1762228689243,3.19645052,107390.0,107380.0,0.0431]
[1762228689456,3.23922423,107390.0,107380.0,0.0431]
[1762228689590,3.19645052,107390.0,107380.0,0.0431]
[1762228690498,3.19645052,107390.0,107380.0,0.08078]
[1762228690905,3.19845052,107390.0,107380.0,0.08078]
[1762228691881,3.19745052,107390.0,107380.0,0.08078]
[1762228692666,3.01121345,107390.0,107380.0,0.08078]
[1762228692926,2.47721377,107390.0,107380.0,0.37441587]
[1762228693150,0.0002,107400.0,107390.0,0.18623707]
[1762228693370,0.0002,107400.0,107390.0,0.23127707]
[1762228693371,0.00068002,107400.0,107390.0,0.23127707]
[1762228698738,0.00090949,107400.0,107390.0,0.23127707]
[1762228699357,2.46738349,107400.0,107390.0,0.23127707]
[1762228702812,2.67256322,107400.0,107390.0,0.20875707]
[1762228703015,2.46738349,107400.0,107390.0,0.20875707]
[1762228703238,2.46738349,107400.0,107390.0,0.22955707]
[1762228703442,2.65360322,107400.0,107390.0,0.22955707]
[1762228703616,2.65360322,107400.0,107390.0,0.20875707]
[1762228703807,2.46738349,107400.0,107390.0,0.22955707]
[1762228706356,2.466474,107390.0,107380.0,0.20543442]
[1762228706685,2.73352107,107390.0,107380.0,0.01918]
[1762228706888,2.69635107,107390.0,107380.0,0.22623442]
[1762228707092,2.67167107,107390.0,107380.0,0.22623442]
[1762228707649,2.485434,107390.0,107380.0,0.22723442]
[1762228707844,2.67167107,107390.0,107380.0,0.22723442]
[1762228708041,2.67167107,107390.0,107380.0,0.04098]
[1762228708490,2.65271107,107390.0,107380.0,0.22723442]
[1762228709746,2.466474,107390.0,107380.0,0.22723442]
[1762228709946,2.65271107,107390.0,107380.0,0.24653442]
[1762228710142,2.65271107,107390.0,107380.0,0.04098]
[1762228710505,2.65271107,107390.0,107380.0,0.22723442]
[1762228711384,2.466474,107390.0,107380.0,0.22723442]
[1762228711794,2.466474,107390.0,107380.0,0.24653442]
[1762228725792,2.65271107,107390.0,107380.0,0.22723442]
[1762228728302,2.66144045,107390.0,107380.0,0.04098]
[1762228728563,2.67840045,107390.0,107380.0,0.22723442]
[1762228729334,2.67840045,107390.0,107380.0,0.04098]
[1762228729539,2.67840045,107390.0,107380.0,0.22723442]
[1762228731147,2.67840045,107390.0,107380.0,0.04098]
[1762228731553,2.83073651,107390.0,107380.0,0.02018]
[1762228731952,2.73616045,107390.0,107380.0,0.02018]
[1762228732424,2.73616045,107390.0,107380.0,0.001]
[1762228734214,3.07616045,107390.0,107380.0,0.001]
[1762228734407,3.07617049,107390.0,107380.0,0.001]
[1762228736917,3.07617049,107390.0,107380.0,0.18725442]
[1762228737327,2.90254949,107390.0,107380.0,0.18725442]
[1762228738131,2.90254949,107390.0,107380.0,0.001]
[1762228738964,2.90254949,107390.0,107370.0,0.20630213]
[1762228739168,2.292853,107380.0,107370.0,0.20630213]
[1762228739393,2.30159242,107380.0,107370.0,0.20630213]
[1762228739596,2.30159242,107380.0,107370.0,0.22386213]
[1762228740759,2.48784684,107380.0,107370.0,0.22486256]
[1762228740983,2.30159242,107380.0,107370.0,0.22486256]
[1762228742351,2.292853,107380.0,107370.0,0.22486256]
[1762228743279,2.309813,107380.0,107370.0,0.22486256]
[1762228744350,2.49606742,107380.0,107370.0,0.22486256]
[1762228744557,2.55382742,107380.0,107370.0,0.20730256]
[1762228745740,2.367573,107380.0,107370.0,0.20730256]
[1762228746044,2.309813,107380.0,107370.0,0.22486256]
[1762228746250,2.292853,107380.0,107370.0,0.22486256]
[1762228746453,2.292853,107380.0,107370.0,0.24242256]
[1762228746884,2.47910742,107380.0,107370.0,0.24242256]
[1762228747045,2.47910742,107380.0,107370.0,0.22486256]
[1762228748235,2.49606742,107380.0,107370.0,0.22486256]
[1762228748450,2.56256706,107380.0,107370.0,0.02103079]
[1762228748689,2.52665706,107380.0,107370.0,0.02103079]
[1762228748892,2.52665706,107380.0,107370.0,0.00185079]
[1762228748893,2.90256706,107380.0,107370.0,0.00185079]
[1762228749749,2.90256706,107380.0,107370.0,0.00085079]
[1762228750984,2.90356706,107380.0,107370.0,0.00085079]
[1762228751584,2.90256706,107380.0,107370.0,0.00085079]
[1762228753480,2.90256706,107380.0,107370.0,0.18712256]
[1762228753719,2.90256706,107380.0,107370.0,0.00085079]
[1762228753929,2.91717519,107380.0,107370.0,0.18712256]
[1762228754152,2.91717519,107380.0,107370.0,0.00085079]
[1762228754842,3.00781699,107380.0,107370.0,0.00085079]
[1762228755062,2.91717519,107380.0,107370.0,0.00085079]
[1762228756233,2.90256706,107380.0,107370.0,0.18712256]
[1762228756691,2.90256706,107380.0,107370.0,0.00085079]
[1762228761428,2.74088606,107380.0,107370.0,0.00085079]
[1762228762892,2.74088002,107380.0,107370.0,0.00085079]
[1762228766694,2.7554885,107380.0,107370.0,0.00085079]
[1762228768540,2.755488,107380.0,107370.0,0.00085079]
[1762228769528,2.74087952,107380.0,107370.0,0.00085079]
[1762228773373,2.87163786,107380.0,107370.0,0.00085079]
[1762228773622,2.87263786,107380.0,107370.0,0.00085079]
[1762228774349,2.89011266,107380.0,107370.0,0.00085079]
[1762228776108,2.65878736,107380.0,107370.0,0.00085079]
[1762228776331,2.88475178,107380.0,107370.0,0.00085079]
[1762228778140,2.89062279,107380.0,107370.0,0.00085079]
[1762228778338,2.91862875,107380.0,107370.0,0.00085079]
[1762228778538,2.91762875,107380.0,107370.0,0.00085079]
[1762228778796,2.91862875,107380.0,107370.0,0.00085079]
[1762228779389,2.92062875,107380.0,107370.0,0.00085079]
[1762228779848,2.92362875,107380.0,107370.0,0.00085079]
[1762228780053,2.93823953,107380.0,107370.0,0.00085079]
[1762228781468,2.92362875,107380.0,107370.0,0.00085079]
[1762228787608,2.93824685,107380.0,107370.0,0.00085079]
[1762228787956,2.92362875,107380.0,107370.0,0.00085079]
[1762228788982,2.92360926,107380.0,107370.0,0.00085079]
[1762228791118,2.31749583,107340.0,107330.0,0.01502]
[1762228791321,2.38300583,107340.0,107330.0,0.01502]
[1762228791520,2.32672583,107340.0,107330.0,0.25713119]
[1762228791718,2.31749583,107340.0,107330.0,0.25713119]
[1762228791931,2.31749583,107340.0,107330.0,0.3458872]
[1762228792321,2.31749583,107340.0,107330.0,0.16259401]
[1762228792728,2.31749583,107340.0,107330.0,0.09180401]
[1762228792942,2.31749583,107340.0,107330.0,0.2781452]
[1762228793145,2.32891721,107340.0,107330.0,0.2781452]
[1762228794469,2.14768421,107340.0,107330.0,0.2781452]
[1762228795269,2.16400421,107340.0,107330.0,0.003048]
[1762228795696,2.22028421,107340.0,107330.0,0.003048]
[1762228795897,2.65486027,107340.0,107330.0,0.003048]
[1762228796097,2.56028421,107340.0,107330.0,0.003048]
[1762228796736,2.56028421,107340.0,107330.0,0.0039666]
[1762228800272,2.29653883,107340.0,107330.0,0.09272261]
[1762228800492,0.6035844,107370.0,107330.0,0.09272261]
[1762228800493,0.00062125,107380.0,107370.0,0.18627177]
[1762228800693,0.00062125,107380.0,107370.0,0.27502778]
[1762228801250,0.04002125,107380.0,107360.0,0.18628912]
[1762228801486,0.08542625,107380.0,107370.0,0.08875601]
[1762228801659,0.07466099,107380.0,107370.0,0.21826743]
[1762228801926,0.07370098,107380.0,107370.0,0.21826743]
[1762228802130,0.07370098,107380.0,107370.0,0.22126743]
[1762228802431,0.08513308,107380.0,107370.0,0.22126743]
[1762228802572,0.07370098,107380.0,107370.0,0.22126743]
[1762228802781,0.07370098,107380.0,107370.0,0.21726743]
[1762228803183,0.04050098,107380.0,107370.0,0.21426743]
[1762228803363,0.05185573,107380.0,107370.0,0.21426743]
[1762228803571,0.04050098,107380.0,107370.0,0.21626743]
[1762228804092,0.0516041,107380.0,107370.0,0.21626743]
[1762228804247,0.0848041,107380.0,107370.0,0.21926743]
[1762228804847,0.0848041,107380.0,107370.0,0.19127177]
[1762228805055,0.07370098,107380.0,107370.0,0.19127177]
[1762228805323,0.04050098,107380.0,107370.0,0.19127177]
[1762228805756,0.05156103,107380.0,107370.0,0.19127177]
[1762228805962,0.08476103,107380.0,107370.0,0.19127177]